Workbook

Sheet Jencks Flint - RR
A1: Rent Roll (cb)
A2: Exported On: 12/07/2025 09:11 AM
A4: Properties: Jencks - 311 Jencks Street Fall River, MA 02723
A5: As of: 12/07/2025
A7: Unit | B7: BD/BA | C7: Unit Type | D7: Sqft | E7: Market Rent | F7: Rental Income | G7: MTM Fees | H7: Pet Fees
A8: Jencks - 311 Jencks Street Fall River, MA 02723
A9: GARAGE | B9: 0/0.00 | C9: GARAGE | D9: 600 | E9: 950 | F9: 850 | G9: 0 | H9: 0
A10: 309-01 | B10: 1/1.00 | C10: 1x1a | D10: 850 | E10: 1350 | F10: 1319 | G10: 0 | H10: 0
A11: 309-02 | B11: 1/1.00 | C11: 1x1a | D11: 850 | E11: 1350 | F11: 1200 | G11: 0 | H11: 0
A12: 309-03 | B12: 2/1.00 | C12: 2x1a | D12: 850 | E12: 1550 | F12: 1300 | G12: 0 | H12: 0
A13: 309-04 | B13: 1/1.00 | C13: 1x1a | D13: 850 | E13: 1350 | F13: 1362 | G13: 0 | H13: 0
A14: 309-05 | B14: 1/1.00 | C14: 1x1a | D14: 850 | E14: 1350 | F14: 1200 | G14: 0 | H14: 0
A15: 309-06 | B15: 2/1.00 | C15: 2x1a | D15: 850 | E15: 1550 | F15: 1350 | G15: 0 | H15: 0
A16: 311-01 | B16: 2/1.00 | C16: 2x1b | D16: 850 | E16: 1550 | F16: 1400 | G16: 50 | H16: 50
A17: 311-02 | B17: 2/1.00 | C17: 2x1b R | D17: 859 | E17: 1700 | F17: 1425 | G17: 50 | H17: 0
A18: 311-03 | B18: 2/1.00 | C18: 2x1b | D18: 850 | E18: 1550 | F18: 1375 | G18: 0 | H18: 0
A19: 311-04 | B19: 1/1.00 | C19: 1x1b | D19: 850 | E19: 1350 | F19: 1200 | G19: 50 | H19: 0
A20: 311-05 | B20: 2/1.00 | C20: 2x1b | D20: 850 | E20: 1550 | F20: 1100 | G20: 0 | H20: 0
A21: 311-06 | B21: 2/1.00 | C21: 2x1b | D21: 850 | E21: 1550 | F21: 1350 | G21: 0 | H21: 0
A22: 311-07 | B22: 2/1.00 | C22: 2x1b | D22: 850 | E22: 1550 | F22: 1450 | G22: 0 | H22: 50
A23: 311-08 | B23: 2/1.00 | C23: 2x1b | D23: 850 | E23: 1550 | F23: 1450 | G23: 0 | H23: 0
A24: 311-09 | B24: 2/1.00 | C24: 2x1b | D24: 850 | E24: 1550 | F24: =583+917 -> 1500 | G24: 0 | H24: 0
A25: 311-10 | B25: 2/1.00 | C25: 2x1b R | D25: 859 | E25: 1700 | F25: 1450 | G25: 50 | H25: 0
A26: 311-11 | B26: 2/1.00 | C26: 2x1b R | D26: 859 | E26: 1700 | F26: 1525 | G26: 0 | H26: 0
A27: 311-12 | B27: 2/1.00 | C27: 2x1b R | D27: 859 | E27: 1700 | F27: 1600 | G27: 0 | H27: 0
A28: 320-01 | B28: 2/1.00 | C28: 2x1b | D28: 850 | E28: 1550 | F28: 1450 | G28: 0 | H28: 0
A29: 320-02 | B29: 1/1.00 | C29: 1x1b | D29: 850 | E29: 1350 | F29: 1250 | G29: 0 | H29: 0
A30: 320-03 | B30: 2/1.00 | C30: 2x1b | D30: 850 | E30: 1550 | F30: =345+1155 -> 1500 | G30: 0 | H30: 0
A31: 320-04 | B31: 2/1.00 | C31: 2x1b | D31: 850 | E31: 1550 | F31: 1400 | G31: 0 | H31: 50
A32: 320-05 | B32: 2/1.00 | C32: 2x1b | D32: 850 | E32: 1550 | F32: 1275 | G32: 0 | H32: 0
A33: 320-06 | B33: 2/1.00 | C33: 2x1b | D33: 850 | E33: 1550 | F33: 1450 | G33: 0 | H33: 50
A34: 25 Units | D34: =SUM(D9:D33) -> 21036 | E34: =SUM(E9:E33) -> 37550 | F34: 33731 | G34: 200 | H34: 200
A36: Gross Annual Income | E36: =+E34*12 -> 450600 | F36: =+F34*12 -> 404772 | G36: 2400 | H36: 2400

Sheet Jencks Flint - P&L
A1: 309 Flint, 322 Flint, 311 Jencks St
A2: 25 Units
A3: Fall River, MA
C7: Current | E7: Market
A10: Gross Rents | C10: =+'Jencks Flint - RR'!F36 -> 404772 | E10: =+'Jencks Flint - RR'!E36 -> 450600
A11: Less: Vacancy (5%) | C11: =-C10*0.05 -> -20238.6 | E11: =-E10*0.05 -> -22530
A13: Net Rental Income | C13: =SUM(C10:C12) -> 384533.4 | E13: =SUM(E10:E12) -> 428070
A15: Other Income:
A16: MTM Fees | C16: =+'Jencks Flint - RR'!G36 -> 2400 | E16: =+C16 -> 2400
A17: Pet Fees | C17: =+'Jencks Flint - RR'!H36 -> 2400 | E17: =+C17 -> 2400
A18: Laundry Income | C18: 3234 | E18: 3234
A20: Gross Revenue | C20: =SUM(C12:C19) -> 392567.4 | E20: =SUM(E12:E19) -> 436104
A23: Operating Expenses:
A24: Real Estate Taxes | C24: =(2337.19+1624.9+2872.12)*4 -> 27336.84 | E24: =(2337.19+1624.9+2872.12)*4 -> 27336.84
A25: Insurance | C25: 13697 | E25: 13697
A26: Sewer and Water | C26: 15031 | E26: 15031
A27: Heat | C27: 11130 | E27: 11130
A28: Electricity | C28: 6790 | E28: 6790
A29: Management Fee (5%) | C29: =+C20*0.05 -> 19628.37 | E29: =+E20*0.05 -> 21805.2
A30: Repair and Maintenance (5%) | C30: =+C20*0.05 -> 19628.37 | E30: =+E20*0.05 -> 21805.2
A32: Total Operating Expenses | C32: =SUM(C23:C31) -> 113241.58 | E32: =SUM(E23:E31) -> 117595.24
A34: Net Operating Income | C34: =+C13-C32 -> 271291.82 | E34: =+E13-E32 -> 310474.76
A37: Valuation | C37: 3950000 | E37: 3950000
A38: Cap Rate | C38: =+C34/C37 -> 0.06868147342 | E38: =+E34/E37 -> 0.07860120506
A39: Value Per Unit | C39: =+C37/25 -> 158000 | E39: =+E37/25 -> 158000
